fUSD/lending_fUSD_20260528
["ID","MTS","AMOUNT","RATE_DAILY","PERIOD"]
[423243132,1779978943000,-300.0,9.032e-05,2]
[423243133,1779978997000,-1200.0,9.032e-05,2]
[423243144,1779979032000,-507.07041597,9.031e-05,2]
[423243143,1779979032000,-507.07041597,9.031e-05,2]
[423243141,1779979032000,-311.48861344,9.031e-05,2]
[423243142,1779979032000,-507.07041597,9.031e-05,2]
[423243140,1779979032000,-507.07041597,9.031e-05,2]
[423243136,1779979032000,-635.37944998,9.031e-05,2]
[423243137,1779979032000,-500.0,9.031e-05,2]
[423243146,1779979032000,-507.07041597,9.031e-05,2]
[423243138,1779979032000,-615.10918032,9.031e-05,2]
[423243135,1779979032000,-333.56326007,9.031e-05,2]
[423243139,1779979032000,-507.07041597,9.031e-05,2]
[423243145,1779979032000,-507.07041597,9.031e-05,2]
[423243134,1779979032000,-300.0,9.031e-05,2]
[423243149,1779979032000,-507.07041597,9.031e-05,2]
[423243159,1779979032000,-507.07041597,9.031e-05,2]
[423243147,1779979032000,-507.07041597,9.031e-05,2]
[423243157,1779979032000,-507.07041597,9.031e-05,2]
[423243158,1779979032000,-507.07041597,9.031e-05,2]
[423243155,1779979032000,-507.07041597,9.031e-05,2]
[423243156,1779979032000,-507.07041597,9.031e-05,2]
[423243152,1779979032000,-507.07041597,9.031e-05,2]
[423243153,1779979032000,-507.07041597,9.031e-05,2]
[423243151,1779979032000,-507.07041597,9.031e-05,2]
[423243148,1779979032000,-507.07041597,9.031e-05,2]
[423243150,1779979032000,-507.07041597,9.031e-05,2]
[423243154,1779979032000,-507.07041597,9.031e-05,2]
[423243170,1779979033000,-507.07041597,9.031e-05,2]
[423243174,1779979033000,-507.07041597,9.031e-05,2]
[423243173,1779979033000,-507.07041597,9.031e-05,2]
[423243172,1779979033000,-507.07041597,9.031e-05,2]
[423243171,1779979033000,-507.07041597,9.031e-05,2]
[423243169,1779979033000,-507.07041597,9.031e-05,2]
[423243168,1779979033000,-507.07041597,9.031e-05,2]
[423243162,1779979033000,-507.07041597,9.031e-05,2]
[423243167,1779979033000,-507.07041597,9.031e-05,2]
[423243165,1779979033000,-507.07041597,9.031e-05,2]
[423243164,1779979033000,-507.07041597,9.031e-05,2]
[423243163,1779979033000,-507.07041597,9.031e-05,2]
[423243175,1779979033000,-507.07041597,9.031e-05,2]
[423243160,1779979033000,-507.07041597,9.031e-05,2]
[423243161,1779979033000,-507.07041597,9.031e-05,2]
[423243166,1779979033000,-507.07041597,9.031e-05,2]
[423243176,1779979033000,-507.07041597,9.031e-05,2]
[423243180,1779979033000,-507.07041597,9.031e-05,2]
[423243177,1779979033000,-507.07041597,9.031e-05,2]
[423243194,1779979033000,-150.0,9.122e-05,2]
[423243193,1779979033000,-5268.4557443,9.033e-05,2]
[423243191,1779979033000,-185.47313113,9.032e-05,2]
[423243192,1779979033000,-4876.73944771,9.033e-05,2]
[423243189,1779979033000,-507.07041597,9.031e-05,2]
[423243190,1779979033000,-500.0,9.032e-05,2]
[423243187,1779979033000,-507.07041597,9.031e-05,2]
[423243195,1779979033000,-182.35,9.375e-05,2]
[423243183,1779979033000,-507.07041597,9.031e-05,2]
[423243188,1779979033000,-507.07041597,9.031e-05,2]
[423243179,1779979033000,-507.07041597,9.031e-05,2]
[423243181,1779979033000,-507.07041597,9.031e-05,2]
[423243178,1779979033000,-507.07041597,9.031e-05,2]
[423243184,1779979033000,-507.07041597,9.031e-05,2]
[423243186,1779979033000,-507.07041597,9.031e-05,2]
[423243182,1779979033000,-507.07041597,9.031e-05,2]
[423243185,1779979033000,-507.07041597,9.031e-05,2]
[423243196,1779979034000,-182.35,9.783e-05,2]
[423243202,1779979034000,-246.58975955,9.935e-05,2]
[423243198,1779979034000,-250.0,9.889e-05,2]
[423243199,1779979034000,-420.0,9.934e-05,2]
[423243200,1779979034000,-250.0,9.934e-05,2]
[423243201,1779979034000,-1680.0,9.935e-05,2]
[423243197,1779979034000,-506.76140362,9.889e-05,2]
[423243203,1779979050000,-182.35,0.00010191,2]
[423243204,1779979104000,-182.35,0.00010598,2]
[423243209,1779979268000,4116.07632451,7.945e-05,2]
[423243207,1779979268000,5128.37109322,7.945e-05,2]
[423243208,1779979268000,5128.37109322,7.945e-05,2]
[423243205,1779979268000,3450.00483083,7.945e-05,2]
[423243206,1779979268000,5128.37109322,7.945e-05,2]
[423243210,1779979311000,-274.98204038,0.0001,2]
[423243211,1779979323000,-827.341249,0.00010919,2]
[423243213,1779979328000,4323.48881529,7.945e-05,2]
[423243212,1779979328000,1012.29476871,7.945e-05,2]
[423243214,1779979357000,-764.10553447,0.000102,2]
[423243216,1779979369000,-760.569319,0.00010945,2]
[423243217,1779979410000,-840.32,0.00010145,2]
[423243218,1779979422000,-209.03147293,0.00010945,2]
[423243221,1779979475000,-1874.2675518,9.303e-05,2]
[423243220,1779979475000,-1874.2675518,9.293e-05,2]
[423243222,1779979517000,-1200.0,9.301e-05,2]
[423243223,1779979528000,-150.0,9.301e-05,2]
[423243231,1779979547000,-500.0,9.302e-05,2]
[423243226,1779979547000,-512.77043887,9.302e-05,2]
[423243227,1779979547000,-500.0,9.302e-05,2]
[423243225,1779979547000,-479.83119179,9.302e-05,2]
[423243224,1779979547000,-207.04599869,9.302e-05,2]
[423243230,1779979547000,-500.0,9.302e-05,2]
[423243228,1779979547000,-500.0,9.302e-05,2]
[423243229,1779979547000,-500.0,9.302e-05,2]
[423243233,1779979547000,-500.0,9.302e-05,2]
[423243236,1779979547000,-500.0,9.302e-05,2]
[423243232,1779979547000,-500.0,9.302e-05,2]
[423243235,1779979547000,-500.0,9.302e-05,2]
[423243237,1779979547000,-500.0,9.302e-05,2]
[423243234,1779979547000,-500.0,9.302e-05,2]
[423243239,1779979547000,-500.0,9.302e-05,2]
[423243241,1779979547000,-500.0,9.302e-05,2]
[423243238,1779979547000,-500.0,9.302e-05,2]
[423243240,1779979547000,-500.0,9.302e-05,2]
[423243242,1779979547000,-500.0,9.302e-05,2]
[423243255,1779979548000,-500.0,9.302e-05,2]
[423243254,1779979548000,-500.0,9.302e-05,2]
[423243253,1779979548000,-500.0,9.302e-05,2]
[423243252,1779979548000,-500.0,9.302e-05,2]
[423243251,1779979548000,-500.0,9.302e-05,2]
[423243250,1779979548000,-500.0,9.302e-05,2]
[423243247,1779979548000,-500.0,9.302e-05,2]
[423243249,1779979548000,-500.0,9.302e-05,2]
[423243257,1779979548000,-500.0,9.302e-05,2]
[423243245,1779979548000,-500.0,9.302e-05,2]
[423243246,1779979548000,-500.0,9.302e-05,2]
[423243244,1779979548000,-500.0,9.302e-05,2]
[423243243,1779979548000,-500.0,9.302e-05,2]
[423243248,1779979548000,-500.0,9.302e-05,2]
[423243256,1779979548000,-500.0,9.302e-05,2]
[423243261,1779979548000,-500.0,9.302e-05,2]
[423243259,1779979548000,-500.0,9.302e-05,2]
[423243272,1779979548000,-152.2460839,9.302e-05,2]
[423243274,1779979548000,-500.0,9.303e-05,2]
[423243273,1779979548000,-312776.3994409,9.303e-05,2]
[423243271,1779979548000,-500.0,9.302e-05,2]
[423243258,1779979548000,-500.0,9.302e-05,2]
[423243269,1779979548000,-636.35184665,9.302e-05,2]
[423243270,1779979548000,-500.0,9.302e-05,2]
[423243265,1779979548000,-500.0,9.302e-05,2]
[423243266,1779979548000,-500.0,9.302e-05,2]
[423243263,1779979548000,-500.0,9.302e-05,2]
[423243264,1779979548000,-500.0,9.302e-05,2]
[423243262,1779979548000,-500.0,9.302e-05,2]
[423243260,1779979548000,-500.0,9.302e-05,2]
[423243267,1779979548000,-500.0,9.302e-05,2]
[423243268,1779979548000,-500.0,9.302e-05,2]
[423243276,1779979549000,-1146.73020567,0.00010231,2]
[423243275,1779979549000,-152.24608388,0.00010051,2]
[423243277,1779979570000,-533.26979433,0.00010231,2]
[423243278,1779979623000,-255.0,0.00010231,2]
[423243281,1779979643000,-299.5980977,0.00011213,2]
[423243282,1779979643000,-9.32936957,0.00011223,2]
[423243280,1779979643000,-182.35,0.00011006,2]
[423243279,1779979643000,-152.24608388,0.000109,2]
[423243283,1779979677000,-1990.67063043,0.00011223,2]
[423243284,1779979730000,-500.0,0.00011253,2]
[423243285,1779979783000,-500.0,0.00011253,2]
[423243307,1779979832000,-1567.05,0.00011936,2]
[423243303,1779979832000,-1159.68,0.00011821,2]
[423243308,1779979832000,-150.0,0.00011954,2]
[423243311,1779979832000,-245.24118621,0.00011955,2]
[423243309,1779979832000,-150.0,0.00011955,2]
[423243312,1779979832000,-250.0,0.0001199,2]
[423243314,1779979832000,-617.91,0.00012189,2]
[423243315,1779979832000,-185.0,0.0001222,2]
[423243310,1779979832000,-150.0,0.00011955,2]
[423243316,1779979832000,-6393.62189713,0.0001222,2]
[423243317,1779979832000,-1567.05,0.00012227,2]
[423243318,1779979832000,-182.35,0.00012229,2]
[423243319,1779979832000,-358.93930721,0.00012357,2]
[423243320,1779979832000,-335.88183425,0.00012357,2]
[423243323,1779979832000,-193.0,0.00012379,2]
[423243313,1779979832000,-2000.0,0.00012188,2]
[423243306,1779979832000,-1073.53016117,0.00011921,2]
[423243305,1779979832000,-2850.0,0.00011904,2]
[423243321,1779979832000,-1494.03,0.00012358,2]
[423243289,1779979832000,-200.0,0.00011479,2]
[423243286,1779979832000,-200.0,0.00011253,2]
[423243288,1779979832000,-182.35,0.00011413,2]
[423243287,1779979832000,-200.0,0.00011366,2]
[423243290,1779979832000,-1538.94,0.00011498,2]
[423243292,1779979832000,-198.09,0.00011543,2]
[423243291,1779979832000,-500.0,0.00011542,2]
[423243304,1779979832000,-182.35,0.00011821,2]
[423243293,1779979832000,-150.0,0.00011543,2]
[423243294,1779979832000,-200.0,0.00011594,2]
[423243297,1779979832000,-200.0,0.0001171,2]
[423243300,1779979832000,-1809.24,0.0001175,2]
[423243296,1779979832000,-1567.05,0.00011645,2]
[423243298,1779979832000,-1677.19060191,0.00011721,2]
[423243301,1779979832000,-151.15,0.0001175,2]
[423243302,1779979832000,-1000.0,0.0001175,2]
[423243295,1779979832000,-1200.0,0.00011644,2]
[423243322,1779979832000,-526.82,0.00012369,2]
[423243299,1779979832000,-2156.58,0.00011747,2]
[423243337,1779979832000,-500.0,0.0001278,2]
[423243363,1779979832000,-150.0,0.00013485,2]
[423243365,1779979832000,-500.0,0.00013485,2]
[423243368,1779979832000,-150.0,0.00013485,2]
[423243370,1779979832000,-500.0,0.00013485,2]
[423243374,1779979832000,-207.06787103,0.00013485,2]
[423243375,1779979832000,-500.0,0.00013485,2]
[423243379,1779979832000,-500.0,0.00013485,2]
[423243355,1779979832000,-500.0,0.00013485,2]
[423243383,1779979832000,-150.0,0.00013485,2]
[423243378,1779979832000,-154.33010067,0.00013485,2]
[423243372,1779979832000,-500.0,0.00013485,2]
[423243381,1779979832000,-500.0,0.00013485,2]
[423243382,1779979832000,-500.0,0.00013485,2]
[423243386,1779979832000,-150.0,0.00013485,2]
[423243324,1779979832000,-1182.49,0.00012406,2]
[423243385,1779979832000,-150.0,0.00013485,2]
[423243384,1779979832000,-150.0,0.00013485,2]
[423243359,1779979832000,-500.0,0.00013485,2]
[423243380,1779979832000,-500.0,0.00013485,2]
[423243353,1779979832000,-500.0,0.00013485,2]
[423243328,1779979832000,-1567.05,0.00012518,2]
[423243326,1779979832000,-500.0,0.0001248,3]
[423243361,1779979832000,-500.0,0.00013485,2]
[423243325,1779979832000,-500.0,0.00012439,2]
[423243342,1779979832000,-1567.05,0.00012809,2]
[423243339,1779979832000,-1680.0,0.00012808,2]
[423243329,1779979832000,-18409.01,0.00012524,2]
[423243333,1779979832000,-71824.5356,0.00012621,2]
[423243327,1779979832000,-151.15,0.00012484,2]
[423243335,1779979832000,-182.35,0.00012636,2]
[423243343,1779979832000,-255.0,0.0001303,2]
[423243345,1779979832000,-182.35,0.00013044,2]
[423243347,1779979832000,-151.15,0.00013219,2]
[423243357,1779979832000,-500.0,0.00013485,2]
[423243349,1779979832000,-182.35,0.00013452,2]
[423243332,1779979832000,-274.72,0.00012524,2]
[423243351,1779979832000,-500.0,0.00013485,2]
[423243424,1779979833000,-1452.10320481,0.00013699,2]
[423243419,1779979833000,-1443.0,0.00013699,2]
[423243423,1779979833000,-1443.0,0.00013699,2]
[423243417,1779979833000,-1443.0,0.00013699,2]
[423243413,1779979833000,-1443.0,0.00013699,2]
[423243416,1779979833000,-1443.0,0.00013699,2]
[423243415,1779979833000,-1443.0,0.00013699,2]
[423243418,1779979833000,-1443.0,0.00013699,2]
[423243420,1779979833000,-1443.0,0.00013699,2]
[423243422,1779979833000,-1443.0,0.00013699,2]
[423243430,1779979833000,-151.15,0.00013953,2]
[423243425,1779979833000,-500.0,0.00013699,2]
[423243426,1779979833000,-2000.0,0.00013711,2]
[423243429,1779979833000,-302.85,0.00013907,2]
[423243427,1779979833000,-166.66,0.00013836,2]
[423243428,1779979833000,-182.35,0.00013859,2]
[423243432,1779979833000,-151.0,0.00013981,2]
[423243433,1779979833000,-250.0,0.00014,2]
[423243431,1779979833000,-166.66,0.00013973,2]
[423243435,1779979833000,-166.66,0.0001411,2]
[423243414,1779979833000,-1443.0,0.00013699,2]
[423243436,1779979833000,-433.0,0.00014201,2]
[423243421,1779979833000,-1443.0,0.00013699,2]
[423243411,1779979833000,-1443.0,0.00013699,2]
[423243392,1779979833000,-250.0,0.00013485,2]
[423243403,1779979833000,-1443.0,0.00013699,2]
[423243437,1779979833000,-166.66,0.00014247,2]
[423243387,1779979833000,-150.0,0.00013485,2]
[423243389,1779979833000,-150.0,0.00013485,2]
[423243398,1779979833000,-9568.13,0.00013699,2]
[423243388,1779979833000,-150.0,0.00013485,2]
[423243391,1779979833000,-192.52430018,0.00013485,2]
[423243399,1779979833000,-200.0,0.00013699,2]
[423243390,1779979833000,-150.0,0.00013485,2]
[423243394,1779979833000,-150.0,0.00013485,2]
[423243393,1779979833000,-150.0,0.00013485,2]
[423243397,1779979833000,-454.28,0.00013605,2]
[423243396,1779979833000,-196.37538809,0.00013485,2]
[423243395,1779979833000,-150.0,0.00013485,2]
[423243400,1779979833000,-166.66,0.00013699,2]
[423243410,1779979833000,-1443.0,0.00013699,2]
[423243402,1779979833000,-1443.0,0.00013699,2]
[423243401,1779979833000,-1443.0,0.00013699,2]
[423243412,1779979833000,-1443.0,0.00013699,2]
[423243406,1779979833000,-1443.0,0.00013699,2]
[423243409,1779979833000,-1443.0,0.00013699,2]
[423243404,1779979833000,-1443.0,0.00013699,2]
[423243405,1779979833000,-1443.0,0.00013699,2]
[423243408,1779979833000,-1443.0,0.00013699,2]
[423243407,1779979833000,-1443.0,0.00013699,2]
[423243434,1779979833000,-2351.0,0.00014089,2]
[423243455,1779979833000,-458.0,0.00014725,2]
[423243439,1779979833000,-1677.19060183,0.00014296,2]
[423243465,1779979833000,-458.0,0.00014725,2]
[423243469,1779979833000,-458.0,0.00014725,2]
[423243473,1779979833000,-567.76,0.00014898,2]
[423243478,1779979833000,-29384.34590216,0.00014899,2]
[423243472,1779979833000,-522.17534381,0.00014799,2]
[423243470,1779979833000,-465.0,0.00014725,2]
[423243474,1779979833000,-500.0,0.00014898,2]
[423243479,1779979833000,-57479.80180228,0.00014899,2]
[423243477,1779979833000,-80747.68357518,0.00014899,2]
[423243471,1779979833000,-2500.0,0.00014799,2]
[423243467,1779979833000,-458.0,0.00014725,2]
[423243476,1779979833000,-5371.68275519,0.00014899,2]
[423243481,1779979833000,-106.02473419,0.00013699,2]
[423243480,1779979833000,-545.45205651,0.00011542,2]
[423243485,1779979833000,-39409.59589129,0.00014899,2]
[423243483,1779979833000,-102.76772663,0.00013699,2]
[423243482,1779979833000,-291.20753918,0.00013699,2]
[423243484,1779979833000,-500.0,0.00013699,2]
[423243438,1779979833000,-182.35,0.00014267,2]
[423243486,1779979833000,-443.39958113,0.00014899,2]
[423243488,1779979833000,-608.61757386,0.00014899,2]
[423243489,1779979833000,-423.9346894,0.00014899,2]
[423243475,1779979833000,-616.04,0.00014898,2]
[423243466,1779979833000,-458.0,0.00014725,2]
[423243487,1779979833000,-500.0,0.00013699,2]
[423243460,1779979833000,-458.0,0.00014725,2]
[423243461,1779979833000,-458.0,0.00014725,2]
[423243440,1779979833000,-166.66,0.00014384,2]
[423243442,1779979833000,-1028.49,0.00014564,2]
[423243444,1779979833000,-2918.477,0.00014625,2]
[423243441,1779979833000,-2000.0,0.00014564,2]
[423243443,1779979833000,-1261.87,0.00014577,2]
[423243446,1779979833000,-182.35,0.00014674,2]
[423243450,1779979833000,-458.0,0.00014725,2]
[423243451,1779979833000,-458.0,0.00014725,2]
[423243456,1779979833000,-458.0,0.00014725,2]
[423243449,1779979833000,-458.0,0.00014725,2]
[423243447,1779979833000,-151.15,0.00014688,2]
[423243458,1779979833000,-458.0,0.00014725,2]
[423243453,1779979833000,-458.0,0.00014725,2]
[423243448,1779979833000,-458.0,0.00014725,2]
[423243454,1779979833000,-458.0,0.00014725,2]
[423243452,1779979833000,-458.0,0.00014725,2]
[423243468,1779979833000,-458.0,0.00014725,2]
[423243445,1779979833000,-15984.5574,0.00014625,2]
[423243457,1779979833000,-458.0,0.00014725,2]
[423243459,1779979833000,-458.0,0.00014725,2]
[423243462,1779979833000,-458.0,0.00014725,2]
[423243463,1779979833000,-458.0,0.00014725,2]
[423243464,1779979833000,-458.0,0.00014725,2]
[423243494,1779979838000,-182.63,0.00013395,2]
[423243493,1779979838000,-182.63,0.00011481,2]
[423243497,1779979838000,-475.40573585,0.00013699,2]
[423243496,1779979838000,-140.82149911,0.00013699,2]
[423243498,1779979838000,-32.99785088,0.00013699,2]
[423243495,1779979838000,-500.0,0.00013699,2]
[423243543,1779979839000,-13705.6548071,0.00014899,2]
[423243542,1779979839000,-467.00214912,0.00013699,2]
[423243546,1779979839000,-659.32948451,0.00014899,2]
[423243544,1779979839000,-710.94573361,0.00014899,2]
[423243547,1779979839000,-312.03666516,0.00014899,2]
[423243549,1779979839000,-2460.0005713,0.00014899,2]
[423243550,1779979839000,-326.21517203,0.00014899,2]
[423243554,1779979839000,-3374.24446509,0.00014899,2]
[423243545,1779979839000,-1817.7797009,0.00014899,2]
[423243594,1779979840000,-444.52180713,0.00014899,2]
[423243591,1779979840000,-274.98204038,0.00013742,2]
[423243596,1779979840000,-894.8278673,0.00014899,2]
[423243604,1779979840000,-1753.64663095,0.00014899,2]
[423243607,1779979840000,-41965.9449915,0.00014899,2]
[423243608,1779979840000,-31684.9317,0.00014899,2]
[423243601,1779979840000,-12955.40241671,0.00014899,2]
[423243610,1779979841000,-6746.22981931,0.00014899,2]
[423243609,1779979841000,-4803.55679394,0.00014899,2]
[423243633,1779979843000,-144.33069884,0.00014899,2]
[423243632,1779979843000,-65.41929074,0.00014899,2]
[423243639,1779979847000,-552.76,0.0001465,2]
[423243640,1779979847000,-1.85202595,0.0001465,2]
[423243645,1779979982000,1712.95,7.833e-05,2]
[423243644,1779979982000,1712.95,7.46e-05,2]
[423243643,1779979982000,1712.95,7.087e-05,2]
[423243649,1779979983000,1712.95,9.326e-05,2]
[423243648,1779979983000,1712.95,8.952e-05,2]
[423243647,1779979983000,1712.95,8.579e-05,2]
[423243646,1779979983000,1712.95,8.206e-05,2]
[423243650,1779979983000,1712.95,9.699e-05,2]
[423243653,1779979984000,1712.95,0.00010818,2]
[423243652,1779979984000,1712.95,0.00010445,2]
[423243651,1779979984000,1712.95,0.00010072,2]
[423243654,1779980010000,-683.57027379,0.00013078,2]
[423243655,1779980064000,-1712.95,0.00011191,2]
[423243656,1779980109000,-1712.95,0.00011564,2]
[423243657,1779980162000,-1712.95,0.00011937,2]
[423243658,1779980216000,-1712.95,0.0001231,2]
[423243659,1779980269000,-500.0,0.00012618,2]
[423243660,1779980322000,-500.0,0.00012618,2]
[423243661,1779980375000,-827.341249,0.00012667,2]
[423243663,1779980428000,-1712.95,0.00012683,2]
[423243664,1779980482000,-500.0,0.00012978,2]
[423243665,1779980506000,-200.0,0.00013,2]
[423243667,1779980506000,-543.91,0.00013072,2]
[423243666,1779980506000,-1712.95,0.00013056,2]
[423243671,1779980506000,-150.0,0.00013178,2]
[423243670,1779980506000,-200.0,0.00013121,2]
[423243669,1779980506000,-157.53,0.00013118,2]
[423243672,1779980506000,-150.0,0.00013178,2]
[423243673,1779980506000,-158.0,0.00013178,2]
[423243668,1779980506000,-2000.0,0.00013108,2]
[423243675,1779980506000,-171.71689517,0.00013194,2]
[423243676,1779980506000,-1200.0,0.00013195,2]
[423243677,1779980506000,-1200.0,0.00013196,2]
[423243678,1779980506000,-700.0,0.00013197,2]
[423243681,1779980506000,-200.0,0.00013699,2]
[423243682,1779980506000,-166.66,0.00013699,2]
[423243680,1779980506000,-1712.95,0.00013429,2]
[423243679,1779980506000,-300.0,0.0001336,2]
[423243683,1779980506000,-401.80302611,0.00013699,2]
[423243674,1779980506000,-500.0,0.00013194,2]
[423243688,1779980792000,251.53,7.358e-05,2]
[423243687,1779980792000,251.53,7.008e-05,2]
[423243686,1779980792000,251.53,6.658e-05,2]
[423243690,1779980793000,17.1800392,7.709e-05,2]
[423243689,1779980793000,234.3499608,7.709e-05,2]
[423243692,1779980793000,251.53,8.41e-05,2]
[423243693,1779980793000,251.53,8.76e-05,2]
[423243691,1779980793000,251.53,8.059e-05,2]
[423243697,1779980794000,251.53,0.00010162,2]
[423243696,1779980794000,251.53,9.811e-05,2]
[423243695,1779980794000,251.53,9.461e-05,2]
[423243694,1779980794000,251.53,9.111e-05,2]
[423243699,1779980795000,251.53,0.00010863,2]
[423243698,1779980795000,251.53,0.00010512,2]
[423243700,1779980836000,-251.53,0.00011213,2]
[423243701,1779980838000,-251.53,0.00011563,2]
[423243704,1779980838000,-251.53,0.00012615,2]
[423243705,1779980838000,-251.53,0.00012965,2]
[423243702,1779980838000,-251.53,0.00011914,2]
[423243703,1779980838000,-251.53,0.00012264,2]
[423243706,1779980838000,-67.02050281,0.00013315,2]
[423243707,1779980847000,-210.10712245,0.00013248,2]
[423243711,1779980890000,-2690.34067055,0.00013248,2]
[423243713,1779980943000,-228.93,0.00013298,2]
[423243714,1779980997000,-453.69024577,0.00013,2]
[423243738,1779981031000,-184.50949719,0.00013315,2]
[423243745,1779981031000,-498.40570527,0.00013376,2]
[423243744,1779981031000,-2905.20483111,0.00013376,2]
[423243743,1779981031000,-2257.7215869,0.00013376,2]
[423243746,1779981031000,-258.87161287,0.00013376,2]
[423243747,1779981031000,-407.0,0.00013376,2]
[423243748,1779981031000,-1557.63357986,0.00013376,2]
[423243751,1779981031000,-1422.2874272,0.00013376,2]
[423243741,1779981031000,-1200.0,0.00013375,2]
[423243752,1779981031000,-342.86699056,0.00013376,2]
[423243749,1779981031000,-1172.8371593,0.00013376,2]
[423243754,1779981031000,-471.06,0.00013408,2]
[423243755,1779981031000,-500.0,0.00013632,2]
[423243753,1779981031000,-8341.85088339,0.00013376,2]
[423243757,1779981031000,-166.66,0.00013836,2]
[423243756,1779981031000,-1712.95,0.00013802,2]
[423243758,1779981031000,-1617.7932742,0.0001385,2]
[423243750,1779981031000,-457.24022354,0.00013376,2]
[423243787,1779981032000,-2989.968,0.00014491,2]
[423243789,1779981032000,-194.21,0.00014491,2]
[423243785,1779981032000,-2500.0,0.00014487,2]
[423243783,1779981032000,-11343.1518,0.00014487,2]
[423243772,1779981032000,-166.66,0.00014247,2]
[423243781,1779981032000,-1441.96219189,0.00014487,2]
[423243763,1779981032000,-1977.3028907,0.00014099,2]
[423243768,1779981032000,-1712.95,0.00014175,2]
[423243759,1779981032000,-166.66,0.00013973,2]
[423243760,1779981032000,-235.11728398,0.00014057,2]
[423243766,1779981032000,-263.41,0.00014174,2]
[423243765,1779981032000,-221.27,0.0001416,2]
[423243761,1779981032000,-251.25751505,0.00014057,2]
[423243764,1779981032000,-166.66,0.0001411,2]
[423243770,1779981032000,-500.0,0.00014175,2]
[423243762,1779981032000,-67462.0360717,0.00014058,2]
[423243774,1779981032000,-166.66,0.00014384,2]
[423243809,1779981032000,-91706.36059947,0.00014587,2]
[423243776,1779981032000,-500.0,0.00014451,2]
[423243791,1779981032000,-25000.0,0.00014504,3]
[423243808,1779981032000,-25642.75739853,0.00014587,2]
[423243805,1779981032000,-500.0,0.00014586,2]
[423243806,1779981032000,-311951.1517,0.00014587,2]
[423243801,1779981032000,-500.0,0.00014586,2]
[423243804,1779981032000,-500.0,0.00014586,2]
[423243799,1779981032000,-1455.64,0.00014586,2]
[423243803,1779981032000,-645.86663214,0.00014586,2]
[423243810,1779981032000,-35179.68498528,0.00014587,2]
[423243807,1779981032000,-86933.63377072,0.00014587,2]
[423243802,1779981032000,-500.0,0.00014586,2]
[423243800,1779981032000,-639.96506873,0.00014586,2]
[423243798,1779981032000,-10861.4,0.00014577,2]
[423243793,1779981032000,-190.39754488,0.00014504,2]
[423243795,1779981032000,-5847.0,0.00014523,2]
[423243797,1779981032000,-10861.4,0.00014577,2]
[423243779,1779981032000,-569.87645658,0.00014451,2]
[423243811,1779981037000,-886.59983301,0.00013667,2]
[423243831,1779981038000,-500.0,0.00014624,2]
[423243839,1779981038000,-1319.65552585,0.0001465,2]
[423243828,1779981038000,-500.0,0.00014624,2]
[423243830,1779981038000,-500.0,0.00014624,2]
[423243834,1779981038000,-500.0,0.00014624,2]
[423243841,1779981038000,-31777.0942996,0.00014687,2]
[423243836,1779981038000,-150.0,0.00014624,2]
[423243833,1779981038000,-500.0,0.00014624,2]
[423243835,1779981038000,-635.78109964,0.00014624,2]
[423243837,1779981038000,-7673.1554481,0.00014633,2]
[423243843,1779981038000,-1680.0,0.00014712,2]
[423243829,1779981038000,-500.0,0.00014624,2]
[423243832,1779981038000,-500.0,0.00014624,2]
[423243824,1779981038000,-600.0,0.00014624,2]
[423243820,1779981038000,-500.0,0.00014624,2]
[423243818,1779981038000,-500.0,0.00014624,2]
[423243821,1779981038000,-500.0,0.00014624,2]
[423243817,1779981038000,-3748.96,0.00014591,2]
[423243815,1779981038000,-500.0,0.00014586,2]
[423243825,1779981038000,-150.0,0.00014624,2]
[423243819,1779981038000,-500.0,0.00014624,2]